bitfinex/quotes_ETHUSD_20250905
["timestamp","ask_amount","ask_price","bid_price","bid_amount"]
[1757110001232,16.52370996,4305.6,4305.5,3.96317868]
[1757110001730,17.75370996,4305.6,4305.5,3.96317868]
[1757110003199,18.98370996,4305.6,4305.5,3.792]
[1757110003519,2.32261061,4305.5,4304.9,0.17268503]
[1757110003739,2.32284974,4305.1,4305.0,3.924]
[1757110003904,2.63294974,4305.1,4305.0,7.716]
[1757110004101,5.47734974,4305.1,4305.0,7.716]
[1757110004542,5.47734974,4305.1,4305.0,3.924]
[1757110004710,7.48735789,4305.1,4305.0,4.04]
[1757110006242,8.71735789,4305.1,4305.0,4.04]
[1757110007199,6.39450815,4305.1,4305.0,4.04]
[1757110007490,2.46,4305.1,4305.0,4.716]
[1757110007605,2.46,4305.1,4305.0,4.832]
[1757110007606,6.8445,4305.1,4305.0,4.832]
[1757110009145,10.39732641,4305.1,4305.0,4.832]
[1757110010534,11.62732641,4305.1,4305.0,4.832]
[1757110011965,12.85732641,4305.1,4305.0,4.832]
[1757110013334,14.08732641,4305.1,4305.0,4.832]
[1757110013946,8.61,4305.1,4305.0,4.832]
[1757110014152,8.61,4305.1,4305.0,7.832]
[1757110014689,9.3536,4305.1,4305.0,7.832]
[1757110014996,9.84,4305.1,4305.0,7.832]
[1757110016285,11.07,4305.1,4305.0,7.832]
[1757110016686,11.8136,4305.1,4305.0,7.832]
[1757110016995,11.07,4305.1,4305.0,8.0182]
[1757110017158,11.07,4305.1,4305.0,12.26328037]
[1757110017358,11.07,4305.1,4305.0,12.37928037]
[1757110017552,12.3,4305.1,4305.0,12.49568037]
[1757110017789,12.3,4305.1,4305.0,12.37928037]
[1757110017989,12.3,4305.1,4305.0,12.49568037]
[1757110018659,12.3,4305.1,4305.0,6.41708037]
[1757110018888,12.3,4305.1,4305.0,12.37828037]
[1757110019092,13.53,4305.1,4305.0,12.49468037]
[1757110019401,13.53,4305.1,4305.0,12.37828037]
[1757110020122,13.53,4305.1,4305.0,19.54828037]
[1757110020628,14.76,4305.1,4305.0,17.51008037]
[1757110021129,14.76,4305.1,4305.0,19.66468037]
[1757110021724,14.76,4305.1,4305.0,17.51008037]
[1757110021924,15.99,4305.1,4305.0,17.51008037]
[1757110022229,15.99,4305.1,4305.0,19.54828037]
[1757110023317,17.22,4305.1,4305.0,19.54828037]
[1757110023718,16.94106178,4305.1,4305.0,19.66468037]
[1757110024722,18.17106178,4305.1,4305.0,19.66468037]
[1757110025451,18.17106178,4305.1,4305.0,20.3623264]
[1757110026257,15.89960996,4305.6,4305.5,2.32261061]
[1757110026553,15.89960996,4305.6,4305.5,12.37741061]
[1757110026855,15.89960996,4305.6,4305.5,11.03638688]
[1757110027428,17.12960996,4305.6,4305.5,11.03638688]
[1757110028162,17.12960996,4305.6,4305.5,13.19098688]
[1757110028740,18.35960996,4305.6,4305.5,13.19098688]
[1757110029149,18.35960996,4305.6,4305.5,13.07458688]
[1757110029353,18.35960996,4305.6,4305.5,20.24458688]
[1757110029553,18.35960996,4305.6,4305.5,20.36098688]
[1757110030234,19.58960996,4305.6,4305.5,20.24458688]
[1757110031347,19.58960996,4305.6,4305.5,18.20538688]
[1757110031538,20.81960996,4305.6,4305.5,18.20538688]
[1757110033033,22.04960996,4305.6,4305.5,18.20538688]
[1757110033239,22.04960996,4305.6,4305.5,20.24358688]
[1757110033635,22.04960996,4305.6,4305.5,20.35998688]
[1757110034480,22.04960996,4305.6,4305.5,20.24358688]
[1757110034640,23.27960996,4305.6,4305.5,20.24358688]
[1757110035939,0.001,4306.1,4305.9,0.792]
[1757110036140,0.001,4306.1,4306.0,24.39856431]
[1757110036351,0.001,4306.1,4306.0,24.56154091]
[1757110036693,0.001,4306.1,4306.0,27.2971615]
[1757110036882,0.001,4306.1,4306.0,27.4135615]
[1757110037474,0.001,4306.1,4306.0,25.2589615]
[1757110037791,1.231,4306.1,4306.0,25.2589615]
[1757110038288,1.231,4306.1,4306.0,27.2971615]
[1757110038588,1.231,4306.1,4306.0,25.2589615]
[1757110038972,1.231,4306.1,4306.0,27.2971615]
[1757110039175,0.001,4306.5,4306.4,3.1141252]
[1757110039366,0.001,4306.5,4306.4,17.3201252]
[1757110039563,0.001,4306.5,4306.4,17.5063252]
[1757110039769,0.001,4306.5,4306.4,18.20371822]
[1757110040689,1.231,4306.5,4306.4,18.01751822]
[1757110041073,1.231,4306.5,4306.4,18.20371822]
[1757110041390,1.231,4306.5,4306.4,18.37921989]
[1757110041591,1.231,4306.5,4306.4,23.6608216]
[1757110042186,2.461,4306.5,4306.4,23.6608216]
[1757110043286,1.23,4306.6,4306.5,6.11407128]
[1757110043596,0.025,4306.8,4306.7,6.11396345]
[1757110043797,0.025,4306.8,4306.7,10.33516345]
[1757110044010,0.025,4306.8,4306.7,17.50516345]
[1757110044303,41.3452357,4306.9,4306.8,11.39551124]
[1757110044608,41.3452357,4306.9,4306.8,20.78991124]
[1757110044965,42.5752357,4306.9,4306.8,20.78991124]
[1757110045364,42.5752357,4306.9,4306.8,18.75171124]
[1757110046411,43.8052357,4306.9,4306.8,18.75171124]
[1757110047208,43.8052357,4306.9,4306.8,21.69151124]
[1757110047401,43.8052357,4306.9,4306.8,22.48351124]
[1757110048016,45.0352357,4306.9,4306.8,22.48351124]
[1757110049219,46.9989357,4306.9,4306.8,22.48351124]
[1757110049412,49.3676357,4306.9,4306.8,22.48351124]
[1757110050128,49.3676357,4306.9,4306.8,19.48351124]
[1757110050313,49.3676357,4306.9,4306.8,14.20190953]
[1757110050516,50.5976357,4306.9,4306.8,17.20190953]
[1757110051016,50.5986357,4306.9,4306.8,17.20190953]
[1757110051403,50.5986357,4306.9,4306.8,21.68968212]
[1757110051845,51.8286357,4306.9,4306.8,21.68968212]
[1757110053331,53.0586357,4306.9,4306.8,21.68968212]
[1757110054157,53.0586357,4306.9,4306.8,3.918]
[1757110054306,53.0586357,4306.9,4306.8,4.71]
[1757110054503,53.0586357,4306.9,4306.8,3.918]
[1757110054708,54.2886357,4306.9,4306.8,3.918]
[1757110054909,54.2886357,4306.9,4306.8,4.71]
[1757110055123,54.2886357,4306.9,4306.8,7.71]
[1757110056240,55.5186357,4306.9,4306.8,7.71]
[1757110057149,55.5186357,4306.9,4306.8,7.826]
[1757110057549,57.78654367,4306.9,4306.8,3.918]
[1757110057847,56.7486357,4306.9,4306.8,3.918]
[1757110058045,56.7486357,4306.9,4306.8,4.71]
[1757110059015,56.7486357,4306.9,4306.8,14.51968212]
[1757110059215,57.9786357,4306.9,4306.8,14.51968212]
[1757110059620,55.1642357,4306.9,4306.8,14.51968212]
[1757110059831,54.8762357,4306.9,4306.8,14.51968212]
[1757110060314,55.1881357,4306.9,4306.8,14.51968212]
[1757110060545,56.8710357,4306.9,4306.8,14.51968212]
[1757110060710,59.2120357,4306.9,4306.8,14.51968212]
[1757110060918,56.1062357,4306.9,4306.8,14.51968212]
[1757110061136,56.1062357,4306.9,4306.8,14.70588212]
[1757110061335,55.82740186,4306.9,4306.8,14.70588212]
[1757110061930,57.05740186,4306.9,4306.8,14.70588212]
[1757110062534,57.05740186,4306.9,4306.8,14.51968212]
[1757110062818,57.05740186,4306.9,4306.8,21.87588212]
[1757110063041,57.05740186,4306.9,4306.8,26.36365471]
[1757110063240,58.28740186,4306.9,4306.8,28.40185471]
[1757110063559,0.001,4307.3,4307.2,3.1136939]
[1757110063725,0.001,4307.3,4307.2,16.22846649]
[1757110063920,0.001,4307.3,4307.2,16.41466649]
[1757110064855,1.231,4307.3,4307.2,16.41466649]
[1757110066249,2.461,4307.3,4307.2,16.41466649]
[1757110066450,2.461,4307.3,4307.2,23.58466649]
[1757110067451,2.461,4307.3,4307.2,23.70066649]
[1757110067753,3.691,4307.3,4307.2,23.70066649]
[1757110068254,3.691,4307.3,4307.2,24.39791851]
[1757110068956,4.921,4307.3,4307.2,24.39791851]
[1757110070253,6.151,4307.3,4307.2,24.39791851]
[1757110070552,6.9158,4307.3,4307.2,24.21171851]
[1757110071324,6.63701323,4307.3,4307.2,24.21171851]
[1757110071566,8.97801323,4307.3,4307.2,18.81594592]
[1757110071733,10.20801323,4307.3,4307.2,28.64671851]
[1757110071933,10.20801323,4307.3,4307.2,29.43871851]
[1757110073128,11.43801323,4307.3,4307.2,29.43871851]
[1757110074468,12.66801323,4307.3,4307.2,24.95094592]
[1757110074631,12.66801323,4307.3,4307.2,29.43871851]
[1757110076061,13.89801323,4307.3,4307.2,29.43871851]
[1757110077268,13.89801323,4307.3,4307.2,19.62825202]
[1757110077269,15.12801323,4307.3,4307.2,19.62825202]
[1757110077469,15.12801323,4307.3,4307.2,22.62825202]
[1757110078843,16.35801323,4307.3,4307.2,22.62825202]
[1757110080368,17.58801323,4307.3,4307.2,27.11602461]
[1757110081039,17.13511323,4307.3,4307.2,29.43771851]
[1757110081243,15.24701323,4307.3,4307.2,29.43771851]
[1757110081565,15.24701323,4307.3,4307.2,29.55371851]
[1757110081730,16.47701323,4307.3,4307.2,29.55371851]
[1757110081925,18.81801323,4307.3,4307.2,29.55371851]
[1757110082675,18.81801323,4307.3,4307.2,27.23202461]
[1757110082868,18.81801323,4307.3,4307.2,29.55371851]
[1757110083166,20.04801323,4307.3,4307.2,29.55371851]
[1757110085076,21.27801323,4307.3,4307.2,29.55371851]
[1757110086378,22.50801323,4307.3,4307.2,29.55371851]
[1757110086579,22.50801323,4307.3,4307.2,27.23202461]
[1757110087354,22.50901323,4307.3,4307.2,27.23202461]
[1757110087848,23.73901323,4307.3,4307.2,27.23202461]
[1757110088879,23.73901323,4307.3,4307.2,29.55371851]
[1757110089273,24.96901323,4307.3,4307.2,27.23202461]
[1757110090865,26.19901323,4307.3,4307.2,27.23202461]
[1757110091289,28.4669212,4307.3,4307.2,10.86625202]
[1757110091501,28.4669212,4307.3,4307.2,14.085]
[1757110092408,29.6969212,4307.3,4307.2,14.085]
[1757110092714,32.0185612,4307.3,4307.2,14.085]
[1757110093205,32.0185612,4307.3,4307.2,10.169]
[1757110093408,32.0185612,4307.3,4307.2,7.169]
[1757110093611,33.2485612,4307.3,4307.2,14.085]
[1757110094987,34.4785612,4307.3,4307.2,14.085]
[1757110095526,29.88901323,4307.3,4307.2,14.085]
[1757110096217,31.11901323,4307.3,4307.2,14.085]
[1757110096621,28.01321323,4307.3,4307.2,19.24877259]
[1757110097127,28.01321323,4307.3,4307.2,21.75666649]
[1757110097510,28.77571323,4307.3,4307.2,14.761]
[1757110097822,32.44721323,4307.3,4307.2,14.761]
[1757110099255,33.67721323,4307.3,4307.2,14.761]
[1757110100246,33.67721323,4307.3,4307.2,15.45844653]
[1757110100754,34.90721323,4307.3,4307.2,15.45844653]
[1757110100954,31.70321323,4307.3,4307.2,17.96634043]
[1757110101155,31.70321323,4307.3,4307.2,16.03021912]
[1757110101324,31.70321323,4307.3,4307.2,22.26791302]
[1757110101726,32.00251323,4307.3,4307.2,15.45844653]
[1757110102054,32.46571323,4307.3,4307.2,15.45844653]
[1757110102231,33.69571323,4307.3,4307.2,17.78014043]
[1757110102430,32.93321323,4307.3,4307.2,17.78014043]
[1757110102628,32.93321323,4307.3,4307.2,17.96634043]
[1757110103756,34.16321323,4307.3,4307.2,17.96634043]
[1757110105356,35.39321323,4307.3,4307.2,17.78014043]
[1757110106638,36.62321323,4307.3,4307.2,17.89614043]
[1757110106946,36.62321323,4307.3,4307.2,20.12054043]
[1757110107133,36.34439679,4307.3,4307.2,20.12054043]
[1757110107338,36.34439679,4307.3,4307.2,20.23694043]
[1757110108046,37.57439679,4307.3,4307.2,20.23694043]
[1757110108254,37.57439679,4307.3,4307.2,20.12054043]
[1757110108433,1.23,4308.7,4308.6,3.792]
[1757110108639,4.434,4308.7,4308.6,9.425]
[1757110109051,1.9925,4308.7,4308.6,10.12222932]
[1757110109390,1.9925,4308.7,4308.6,12.44316883]
[1757110109535,1.9925,4308.7,4308.6,10.12222932]
[1757110110664,3.2225,4308.7,4308.6,10.12222932]
[1757110112074,6.894,4308.7,4308.6,7.29679822]
[1757110112371,9.16190797,4308.7,4308.6,10.29679822]
[1757110112739,11.48279361,4308.7,4308.6,6.19922932]
[1757110113069,9.16190797,4308.7,4308.6,10.12122932]
[1757110113375,10.39190797,4308.7,4308.6,10.12122932]
[1757110113571,10.39190797,4308.7,4308.6,6.19922932]
[1757110113875,12.71279361,4308.7,4308.6,10.12022932]
[1757110114074,10.39190797,4308.7,4308.6,10.12022932]
[1757110115182,13.94279361,4308.7,4308.6,10.12022932]
[1757110115879,11.62190797,4308.7,4308.6,10.12022932]
[1757110116555,12.85190797,4308.7,4308.6,10.12022932]
[1757110117158,15.17279361,4308.7,4308.6,10.12022932]
[1757110117462,12.85190797,4308.7,4308.6,10.12022932]
[1757110117857,16.40279361,4308.7,4308.6,9.32822932]
[1757110118240,16.40279361,4308.7,4308.6,9.44422932]
[1757110119157,17.63279361,4308.7,4308.6,9.44422932]
[1757110119343,17.63279361,4308.7,4308.6,5.52322932]
[1757110119540,17.63279361,4308.7,4308.6,6.44022932]
[1757110119941,17.63279361,4308.7,4308.6,1.826]
[1757110120147,17.63279361,4308.7,4308.6,5.744]
[1757110120584,18.86279361,4308.7,4308.6,5.744]
[1757110121265,18.86279361,4308.7,4308.6,5.743]
[1757110121984,20.09279361,4308.7,4308.6,5.743]
[1757110123479,21.32279361,4308.7,4308.6,5.743]
[1757110124799,22.55279361,4308.7,4308.6,5.743]
[1757110126185,23.78279361,4308.7,4308.6,1.826]
[1757110126382,23.78279361,4308.7,4308.6,5.742]
[1757110127203,23.78279361,4308.7,4308.6,1.826]
[1757110127408,23.78279361,4308.7,4308.6,5.742]
[1757110127609,25.01279361,4308.7,4308.6,5.742]
[1757110129002,25.01279361,4308.7,4308.6,1.826]
[1757110129219,26.24279361,4308.7,4308.6,5.742]
[1757110130595,2.32126276,4308.0,4307.9,0.69744491]
[1757110130795,7.60090459,4308.0,4307.9,4.61344491]
[1757110131126,10.70220459,4308.0,4307.9,4.032]
[1757110132100,11.93220459,4308.0,4307.9,4.032]
[1757110132321,13.35754527,4308.0,4307.9,4.032]
[1757110133019,8.07790344,4308.0,4307.9,4.032]
[1757110133408,9.30790344,4308.0,4307.9,4.032]
[1757110134427,9.30790344,4308.0,4307.9,0.116]
[1757110134636,10.53790344,4308.0,4307.9,4.032]
[1757110136332,11.76790344,4308.0,4307.9,4.032]
[1757110137106,7.24126276,4308.0,4307.9,4.1022]
[1757110137305,7.24126276,4308.0,4307.9,4.2182]
[1757110137705,8.47126276,4308.0,4307.9,4.2182]
[1757110137905,8.47126276,4308.0,4307.9,6.2564]
[1757110138234,8.47126276,4308.0,4307.9,4.2182]
[1757110138631,6.15,4308.0,4307.9,4.2182]
[1757110138836,8.47126276,4308.0,4307.9,4.2182]
[1757110139014,9.70126276,4308.0,4307.9,4.2182]
[1757110139417,7.38,4308.0,4307.9,4.2182]
[1757110139617,7.38,4308.0,4307.9,6.2564]
[1757110139943,9.70126276,4308.0,4307.9,4.2182]
[1757110140348,10.93126276,4308.0,4307.9,4.2182]
[1757110141023,8.61,4308.0,4307.9,4.2182]
[1757110141552,10.93126276,4308.0,4307.9,4.2182]
[1757110141717,12.16126276,4308.0,4307.9,4.2182]
[1757110141919,12.16126276,4308.0,4307.9,4.032]
[1757110142162,12.16126276,4308.0,4307.9,4.2182]
[1757110142319,9.84,4308.0,4307.9,4.2182]
[1757110142519,9.84,4308.0,4307.9,7.0484]
[1757110142943,9.84,4308.0,4307.9,5.0102]
[1757110143252,11.07,4308.0,4307.9,5.0102]
[1757110143613,12.19138277,4308.0,4307.9,5.0102]
[1757110144432,12.19138277,4308.0,4307.9,4.2182]
[1757110144659,13.42138277,4308.0,4307.9,4.2182]
[1757110146081,14.65138277,4308.0,4307.9,4.2182]
[1757110146370,14.65138277,4308.0,4307.9,6.9324]
[1757110146531,14.02839234,4308.0,4307.9,7.0488]
[1757110147458,15.25839234,4308.0,4307.9,7.0488]
[1757110147771,14.48120529,4308.0,4307.9,9.37011665]
[1757110149062,15.71120529,4308.0,4307.9,9.37011665]
[1757110149661,15.71120529,4308.0,4307.9,7.0488]
[1757110150676,16.94120529,4308.0,4307.9,7.0488]
[1757110151636,16.94120529,4308.0,4307.9,9.37011665]
[1757110151836,18.17120529,4308.0,4307.9,7.0488]
[1757110152050,18.17120529,4308.0,4307.9,9.25371665]
[1757110152251,18.17120529,4308.0,4307.9,7.0488]
[1757110153073,18.17120529,4308.0,4307.9,0.792]
[1757110153281,19.40120529,4308.0,4307.9,4.707]
[1757110153646,19.40120529,4308.0,4307.9,4.8932]
[1757110154864,20.63120529,4308.0,4307.9,10.2362]
[1757110156176,21.86120529,4308.0,4307.9,10.2362]
[1757110156379,21.86120529,4308.0,4307.9,10.3522]
[1757110157491,23.09120529,4308.0,4307.9,10.3522]
[1757110158903,24.32120529,4308.0,4307.9,10.3522]
[1757110159600,24.32120529,4308.0,4307.9,10.2362]
[1757110159793,24.04242663,4308.0,4307.9,12.55751665]
[1757110159987,24.04242663,4308.0,4307.9,14.59571665]
[1757110160189,24.04242663,4308.0,4307.9,14.71211665]
[1757110160397,25.27242663,4308.0,4307.9,14.71211665]
[1757110160585,25.27242663,4308.0,4307.9,15.40934598]
[1757110161793,26.50242663,4308.0,4307.9,15.40934598]
[1757110162189,26.50242663,4308.0,4307.9,15.29294598]
[1757110163215,27.73242663,4308.0,4307.9,13.25474598]
[1757110164712,28.96242663,4308.0,4307.9,6.83222933]
[1757110164905,28.96242663,4308.0,4307.9,12.37131665]
[1757110165213,28.96242663,4308.0,4307.9,12.55751665]
[1757110165983,30.19242663,4308.0,4307.9,12.55751665]
[1757110167303,31.42242663,4308.0,4307.9,12.55751665]
[1757110168312,31.42242663,4308.0,4307.9,14.59571665]
[1757110168698,32.65242663,4308.0,4307.9,13.25474759]
[1757110169700,32.37368198,4308.0,4307.9,13.37074759]
[1757110170527,33.60368198,4308.0,4307.9,13.37074759]
[1757110171836,34.83368198,4308.0,4307.9,13.37074759]
[1757110172998,36.06368198,4308.0,4307.9,13.37074759]
[1757110174739,37.29468198,4308.0,4307.9,13.37074759]
[1757110176006,38.52468198,4308.0,4307.9,13.37074759]
[1757110177542,39.75468198,4308.0,4307.9,13.37074759]
[1757110178922,40.98468198,4308.0,4307.9,13.37074759]
[1757110179724,40.70594144,4308.0,4307.9,13.37074759]
[1757110180328,41.93594144,4308.0,4307.9,13.37074759]
[1757110182137,43.16594144,4308.0,4307.9,15.40894759]
[1757110182312,43.16594144,4308.0,4307.9,18.40894759]
[1757110182514,0.001,4308.5,4308.4,3.11304725]
[1757110182715,0.001,4308.5,4308.4,10.14204725]
[1757110183121,0.001,4308.5,4308.4,13.17989999]
[1757110183622,0.001,4308.5,4308.4,13.06349999]
[1757110184228,0.001,4308.5,4308.4,11.02529999]
[1757110184434,1.231,4308.5,4308.4,11.02529999]
[1757110185825,2.461,4308.5,4308.4,11.02529999]
[1757110186738,2.461,4308.5,4308.4,13.06349999]
[1757110187126,3.691,4308.5,4308.4,11.02529999]
[1757110187326,3.691,4308.5,4308.4,13.06349999]
[1757110187753,3.691,4308.5,4308.4,13.17989999]
[1757110188144,3.691,4308.5,4308.4,11.02529999]
[1757110188356,3.691,4308.5,4308.4,7.11229999]
[1757110188555,4.921,4308.5,4308.4,11.02529999]
[1757110189328,4.921,4308.5,4308.4,13.06349999]
[1757110189662,4.921,4308.5,4308.4,11.02529999]
[1757110189828,5.87233402,4308.5,4308.4,11.02529999]
[1757110190158,5.87233402,4308.5,4308.4,7.11229999]
[1757110190362,5.87233402,4308.5,4308.4,11.02429999]
[1757110190564,5.31500004,4308.5,4308.4,11.02429999]
[1757110191630,6.54500004,4308.5,4308.4,6.92609999]
[1757110191860,6.54500004,4308.5,4308.4,10.83809999]
[1757110191861,7.01260004,4308.5,4308.4,10.83809999]
[1757110192063,6.54500004,4308.5,4308.4,10.83809999]
[1757110192254,6.54500004,4308.5,4308.4,11.02429999]
[1757110192856,7.77500004,4308.5,4308.4,11.02429999]
[1757110193557,7.77500004,4308.5,4308.4,7.11229999]
[1757110193758,7.77500004,4308.5,4308.4,11.02429999]
[1757110194062,7.77500004,4308.5,4308.4,10.83809999]
[1757110194254,9.00500004,4308.5,4308.4,10.83809999]
[1757110194558,9.00500004,4308.5,4308.4,11.02429999]
[1757110196255,10.23500004,4308.5,4308.4,11.02429999]
[1757110197652,11.46500004,4308.5,4308.4,11.02429999]
[1757110198841,11.46500004,4308.5,4308.4,10.83809999]
[1757110199155,12.69500004,4308.5,4308.4,10.83809999]
[1757110199782,12.41633029,4308.5,4308.4,10.83809999]
[1757110200680,13.93983029,4308.5,4308.4,10.83809999]
[1757110200885,14.40743029,4308.5,4308.4,10.83809999]
[1757110201935,15.63743029,4308.5,4308.4,10.83809999]
[1757110203231,16.86743029,4308.5,4308.4,10.83809999]
[1757110204831,18.09743029,4308.5,4308.4,10.83809999]
[1757110206366,19.32743029,4308.5,4308.4,10.83809999]
[1757110207241,19.32743029,4308.5,4308.4,17.24709999]
[1757110207641,20.55743029,4308.5,4308.4,17.24709999]
[1757110208363,20.00009278,4308.5,4308.4,17.24709999]
[1757110208538,19.70659278,4308.5,4308.4,17.24709999]
[1757110208941,20.93659278,4308.5,4308.4,17.24709999]
[1757110209147,20.46899278,4308.5,4308.4,17.24709999]
[1757110209354,20.46899278,4308.5,4308.4,17.43329999]
[1757110209769,20.19032555,4308.5,4308.4,17.43329999]
[1757110210384,20.19132555,4308.5,4308.4,19.58789999]
[1757110210545,21.42132555,4308.5,4308.4,19.47149999]
[1757110210885,21.42132555,4308.5,4308.4,17.43329999]
[1757110212006,22.65132555,4308.5,4308.4,17.43329999]
[1757110213179,22.65132555,4308.5,4308.4,17.37525899]
[1757110213509,23.88132555,4308.5,4308.4,17.37525899]
[1757110214790,25.11132555,4308.5,4308.4,17.37525899]
[1757110214986,0.001,4308.6,4308.5,6.11299338]
[1757110215392,0.001,4308.6,4308.5,6.29919338]
[1757110215592,0.001,4308.6,4308.5,6.99611982]
[1757110216108,1.231,4308.6,4308.5,6.99611982]
[1757110216308,0.67371749,4308.6,4308.5,6.99611982]
[1757110216822,0.67371749,4308.6,4308.5,8.70511982]
[1757110217520,1.90371749,4308.6,4308.5,8.70511982]
[1757110218289,1.78371749,4308.6,4308.5,8.70511982]
[1757110218494,1.78371749,4308.6,4308.5,10.74331982]
[1757110219001,3.01371749,4308.6,4308.5,10.74331982]
[1757110219811,2.73507971,4308.6,4308.5,10.74331982]
[1757110220013,2.73507971,4308.6,4308.5,8.70511982]
[1757110220414,3.96507971,4308.6,4308.5,8.70511982]
[1757110222416,5.19507971,4308.6,4308.5,8.70511982]
[1757110222940,5.19507971,4308.6,4308.5,10.74331982]
[1757110223142,5.19507971,4308.6,4308.5,14.65231982]
[1757110223316,5.19507971,4308.6,4308.5,12.61411982]
[1757110223814,6.42507971,4308.6,4308.5,12.61411982]
[1757110224323,5.8678103,4308.6,4308.5,12.61411982]
[1757110224526,5.8678103,4308.6,4308.5,8.70511982]
[1757110224727,5.8678103,4308.6,4308.5,12.42791982]
[1757110225128,7.0978103,4308.6,4308.5,12.61411982]
[1757110226555,8.3278103,4308.6,4308.5,12.61411982]
[1757110226843,4.04310072,4308.7,4308.6,6.11293951]
[1757110227144,0.025,4308.8,4308.7,6.11288564]
[1757110227344,0.025,4308.8,4308.7,10.02188564]
[1757110227553,0.025,4308.8,4308.7,10.20808564]
[1757110228047,1.255,4308.8,4308.7,10.90501208]
[1757110228241,2.0266,4308.8,4308.7,10.71881208]
[1757110228416,4.427,4308.8,4308.7,10.71781208]
[1757110229629,5.657,4308.8,4308.7,10.71781208]
[1757110229826,5.37835456,4308.8,4308.7,10.71781208]
[1757110231169,6.60835456,4308.8,4308.7,10.71781208]
[1757110232154,6.60835456,4308.8,4308.7,16.05781208]
[1757110232460,7.28106381,4308.8,4308.7,16.05781208]
[1757110233038,7.28106381,4308.8,4308.7,12.14981208]
[1757110233238,7.28106381,4308.8,4308.7,16.05781208]
[1757110234062,8.51106381,4308.8,4308.7,16.05781208]
[1757110235569,9.74106381,4308.8,4308.7,16.05781208]
[1757110236879,10.97106381,4308.8,4308.7,16.17381208]
[1757110238556,12.20106381,4308.8,4308.7,16.17381208]
[1757110239872,13.15242414,4308.8,4308.7,16.17381208]
[1757110240385,12.5951448,4308.8,4308.7,16.17381208]
[1757110240794,9.84,4308.8,4308.7,16.17381208]
[1757110240999,9.84,4308.8,4308.7,16.46851208]
[1757110241290,11.07,4308.8,4308.7,16.46851208]
[1757110241854,13.6735,4308.8,4308.7,16.17381208]
[1757110242059,13.6735,4308.8,4308.7,16.17281208]
[1757110242273,13.6735,4308.8,4308.7,12.26581208]
[1757110242474,14.1231,4308.8,4308.7,16.17281208]
[1757110242699,15.3531,4308.8,4308.7,9.26581208]
[1757110242886,15.3531,4308.8,4308.7,9.14981208]
[1757110243196,15.3531,4308.8,4308.7,16.05681208]
[1757110243377,15.3531,4308.8,4308.7,13.05681208]
[1757110244101,16.5831,4308.8,4308.7,16.05681208]
[1757110244489,16.5331,4308.8,4308.7,16.05681208]
[1757110245505,17.7631,4308.8,4308.7,16.05681208]
[1757110246784,18.9931,4308.8,4308.7,16.05681208]
[1757110247868,18.9941,4308.8,4308.7,16.05681208]
[1757110248271,20.2241,4308.8,4308.7,16.05681208]
[1757110249575,21.4541,4308.8,4308.7,16.05681208]
[1757110249796,21.17544222,4308.8,4308.7,16.05681208]
[1757110251080,22.40544222,4308.8,4308.7,16.05681208]
[1757110252083,2.16424095,4309.3,4308.9,0.792]
[1757110252414,1e-08,4309.3,4309.2,6.40731635]
[1757110252777,3.05310001,4309.3,4309.2,10.01861635]
[1757110252977,1e-08,4309.3,4309.2,6.11261635]
[1757110253298,1e-08,4309.3,4309.2,10.01861635]
[1757110253498,1e-08,4309.3,4309.2,10.31331635]
[1757110253687,1e-08,4309.3,4309.2,11.01021689]
[1757110253893,1.23000001,4309.3,4309.2,11.01021689]
[1757110255310,2.46000001,4309.3,4309.2,11.01021689]
[1757110256615,3.69000001,4309.3,4309.2,11.01021689]
[1757110258113,4.92000001,4309.3,4309.2,8.01021689]
[1757110258482,4.92000001,4309.3,4309.2,11.01021689]
[1757110259415,6.15000001,4309.3,4309.2,11.01021689]
[1757110260330,6.15000001,4309.3,4309.2,11.45411689]
[1757110260710,7.38000001,4309.3,4309.2,11.45411689]
[1757110260913,7.38000001,4309.3,4309.2,11.01021689]
[1757110262238,8.61000001,4309.3,4309.2,11.01021689]
[1757110262810,8.61000001,4309.3,4309.2,11.12621689]
[1757110263144,8.61000001,4309.3,4309.2,10.83151689]
[1757110263331,11.66310001,4309.3,4309.2,0.81290054]
[1757110263634,12.89310001,4309.3,4309.2,3.905]
[1757110263842,12.89310001,4309.3,4309.2,4.697]
[1757110264138,12.89310001,4309.3,4309.2,3.905]
[1757110264946,14.12310001,4309.3,4309.2,4.697]
[1757110266324,15.35310001,4309.3,4309.2,4.697]
[1757110267750,16.58310001,4309.3,4309.2,4.697]
[1757110268627,16.13350001,4309.3,4309.2,7.01761635]
[1757110269154,15.06470001,4309.3,4309.2,7.01761635]
[1757110269338,15.06470001,4309.3,4309.2,7.71458327]
[1757110269741,15.52430001,4309.3,4309.2,7.01761635]
[1757110270055,18.00000001,4309.3,4309.2,7.01761635]
[1757110271056,19.23000001,4309.3,4309.2,4.697]
[1757110271220,19.23000001,4309.3,4309.2,7.01761635]
[1757110272147,19.23000001,4309.3,4309.2,4.697]
[1757110272334,20.46000001,4309.3,4309.2,4.697]
[1757110272532,20.46000001,4309.3,4309.2,7.01761635]
[1757110273237,17.98430001,4309.3,4309.2,7.01761635]
[1757110273459,17.98430001,4309.3,4309.2,7.13361635]
[1757110273658,19.21430001,4309.3,4309.2,7.13361635]
[1757110273838,21.69000001,4309.3,4309.2,3.22861635]
[1757110274155,21.69000001,4309.3,4309.2,7.13361635]
[1757110274356,21.69000001,4309.3,4309.2,0.908]
[1757110274578,21.69000001,4309.3,4309.2,4.813]
[1757110275056,22.92000001,4309.3,4309.2,7.13361635]
[1757110275877,22.92000001,4309.3,4309.2,4.813]
[1757110276339,24.15000001,4309.3,4309.2,4.813]
[1757110277370,24.15000001,4309.3,4309.2,0.908]
[1757110277540,24.15000001,4309.3,4309.2,4.812]
[1757110277743,24.92040001,4309.3,4309.2,7.13261635]
[1757110277937,25.38000001,4309.3,4309.2,4.812]
[1757110278678,25.38000001,4309.3,4309.2,7.13261635]
[1757110278976,25.38000001,4309.3,4309.2,4.812]
[1757110279177,26.61000001,4309.3,4309.2,4.812]
[1757110279379,26.61000001,4309.3,4309.2,7.13261635]
[1757110279876,26.61000001,4309.3,4309.2,4.812]
[1757110280076,26.61000001,4309.3,4309.2,7.13261635]
[1757110280285,26.61000001,4309.3,4309.2,4.812]
[1757110280458,27.84000001,4309.3,4309.2,4.812]
[1757110280859,27.84000001,4309.3,4309.2,7.13261635]